bitfinex-derivatives/quotes_ETHF0:USTF0_20250804
["timestamp","ask_amount","ask_price","bid_price","bid_amount"]
[1754272141585,0.5648,3540.7,3540.6,1.8881]
[1754272141788,3.77259,3540.8,3540.6,1.733]
[1754272141995,3.77259,3540.8,3540.7,4.3547]
[1754272142184,3.2078,3540.8,3540.7,4.3547]
[1754272142391,3.2078,3541.2,3541.1,4.3547]
[1754272142693,1.7422,3541.5,3541.4,4.3547]
[1754272143091,0.56473,3541.2,3540.9,0.9594]
[1754272143392,3.96421,3540.6,3540.5,4.3547]
[1754272143600,3.33861,3540.6,3540.5,4.3547]
[1754272143898,4.90521,3540.6,3540.5,4.3547]
[1754272144697,3.77259,3540.8,3540.7,1.733]
[1754272144895,4.90519,3540.8,3540.7,1.733]
[1754272145105,5.51479,3540.8,3540.5,0.9287]
[1754272145296,4.90521,3540.6,3540.5,2.6617]
[1754272145492,2.30701,3540.6,3540.3,0.9594]
[1754272145798,4.90524,3540.4,3540.3,4.3547]
[1754272146600,3.2078,3540.8,3540.0,3.7727]
[1754272146601,3.97919,3540.1,3540.0,3.2078]
[1754272146797,4.3404,3539.8,3539.7,1.1029]
[1754272146996,4.90526,3540.3,3540.2,1.1029]
[1754272147196,3.2078,3540.4,3540.2,4.3547]
[1754272147398,2.30699,3540.7,3540.6,1.733]
[1754272147596,2.30699,3540.7,3540.0,0.5649]
[1754272147597,1.7422,3540.7,3539.5,3.2078]
[1754272147797,2.30709,3540.1,3540.0,0.609]
[1754272148095,4.90529,3540.1,3540.0,0.609]
[1754272148292,4.90529,3540.1,3540.0,1.733]
[1754272148695,4.90529,3540.1,3540.0,4.3547]
[1754272151296,4.90529,3540.1,3540.0,1.733]
[1754272151502,1.20477,3539.6,3539.5,4.9408]
[1754272151699,1.20477,3539.6,3539.5,5.8695]
[1754272151897,1.7422,3539.6,3539.5,3.22669]
[1754272152099,1.7422,3539.6,3539.5,4.18609]
[1754272152298,1.7422,3539.6,3539.5,4.3547]
[1754272153799,1.7422,3539.6,3539.5,4.91969]
[1754272153995,1.7422,3539.6,3539.5,4.3547]
[1754272156599,1.18768,3540.2,3540.1,3.6008]
[1754272156795,6.02388,3540.8,3540.7,1.1]
[1754272157004,8.11478,3540.8,3540.7,4.2337]
[1754272158400,7.39938,3540.8,3540.7,4.2337]
[1754272158601,8.11478,3540.8,3540.7,4.2337]
[1754272160004,8.11478,3540.8,3540.5,0.56481]
[1754272160005,3.77252,3541.2,3541.1,1.7329]
[1754272160196,3.77252,3541.2,3541.1,4.2337]
[1754272160197,4.9475,3541.2,3541.1,4.2337]
[1754272160511,3.2078,3541.2,3541.1,4.2337]
[1754272160800,3.2078,3541.6,3541.5,4.2337]
[1754272163903,3.2078,3542.2,3542.1,4.79827]
[1754272164105,2.6025,3542.5,3542.1,4.79827]
[1754272164304,3.3682,3542.5,3542.4,1.7329]
[1754272164606,4.90671,3542.5,3542.4,4.2337]
[1754272165207,1.7397,3542.0,3541.9,7.4415]
[1754272165405,4.3422,3542.0,3541.9,8.0061]
[1754272165606,4.3422,3542.0,3541.9,7.4415]
[1754272165801,4.90679,3542.0,3541.9,3.2078]
[1754272166005,2.30429,3542.0,3541.9,0.6204]
[1754272166713,4.90679,3542.0,3541.9,0.6204]
[1754272167411,2.6025,3541.8,3541.1,6.5373]
[1754272167612,4.3422,3541.2,3541.1,3.3295]
[1754272167914,4.3422,3541.2,3541.1,4.2337]
[1754272168608,2.6025,3541.5,3541.1,1.7329]
[1754272168808,4.90688,3541.5,3541.4,3.3482]
[1754272169015,3.93288,3541.5,3541.4,1.7329]
[1754272169209,4.90688,3541.5,3541.4,1.2533]
[1754272169916,4.3422,3540.8,3540.7,3.2078]
[1754272170107,4.3422,3540.8,3540.7,4.9407]
[1754272170308,2.7137,3540.8,3540.7,7.4415]
[1754272170608,1.7397,3540.8,3540.7,7.4415]
[1754272171408,1.7397,3540.8,3540.7,4.4611]
[1754272171603,0.56475,3541.0,3540.7,8.0063]
[1754272171815,4.3422,3541.1,3541.0,4.2337]
[1754272172110,0.6228,3541.1,3541.0,4.2337]
[1754272172307,3.2078,3541.2,3541.0,2.29763]
[1754272172508,3.2078,3541.2,3541.1,4.2337]
[1754272173216,4.9475,3541.2,3541.1,4.2337]
[1754272173516,7.20162,3541.2,3541.1,4.2337]
[1754272173708,4.90692,3541.2,3541.1,4.2337]
[1754272173909,4.3422,3541.2,3541.1,4.2337]
[1754272174314,1.7397,3541.2,3541.1,4.2337]
[1754272175013,4.3422,3541.2,3541.1,4.2337]
[1754272175207,1.7397,3540.8,3540.7,6.556]
[1754272175407,4.3422,3540.8,3540.7,6.556]
[1754272175716,4.3422,3540.8,3540.7,7.4415]
[1754272176607,1.7397,3540.8,3540.7,7.4415]
[1754272176815,1.0926,3540.8,3540.7,7.4415]
[1754272177511,0.56473,3541.2,3540.7,3.2078]
[1754272177713,4.90693,3541.2,3541.1,4.2337]
[1754272178109,2.30445,3541.0,3540.9,1.7329]
[1754272178310,4.90695,3541.0,3540.9,4.2337]
[1754272179111,2.30448,3540.8,3540.7,4.4611]
[1754272179316,4.3422,3540.8,3540.7,4.9407]
[1754272179618,4.3422,3540.8,3540.7,7.4415]
[1754272179814,4.3422,3540.8,3540.7,4.2337]
[1754272180518,4.3422,3540.8,3540.7,2.6966]
[1754272180919,4.3422,3540.8,3540.7,3.3295]
[1754272181315,4.3422,3540.8,3540.7,4.2337]
[1754272181618,4.3422,3540.5,3540.4,3.3295]
[1754272181819,4.90703,3540.5,3540.4,1.2533]
[1754272182007,1.7397,3540.3,3540.2,1.2533]
[1754272182212,2.2439,3540.3,3540.2,0.6204]
[1754272182412,2.2439,3540.3,3540.2,4.2337]
[1754272182715,4.3422,3540.3,3540.2,4.2337]
[1754272183110,4.3422,3540.3,3540.1,0.56489]
[1754272183111,4.3422,3540.6,3540.5,4.2337]
[1754272184414,1.7365,3540.1,3540.0,4.9321]
[1754272184608,4.3337,3540.1,3540.0,7.5199]
[1754272184810,4.3337,3539.9,3539.5,3.08797708]
[1754272185110,3.8567,3539.7,3539.6,2.948]
[1754272185318,3.8567,3539.7,3539.6,4.3121]
[1754272185319,4.3337,3539.7,3539.6,4.3121]
[1754272188721,2.8857,3540.1,3540.0,1.1053]
[1754272188922,4.3337,3540.1,3540.0,2.6295]
[1754272189217,4.3337,3540.1,3540.0,1.7243]
[1754272191020,3.77268,3540.2,3540.1,4.3121]
[1754272191021,3.77267,3540.2,3540.1,4.3121]
[1754272191214,8.10637,3540.2,3540.1,4.3121]
[1754272192222,1.66961,3540.0,3539.9,1.1053]
[1754272192419,1.7365,3540.0,3539.9,1.7243]
[1754272192621,1.7365,3540.0,3539.9,4.3121]
[1754272192922,4.3337,3540.0,3539.9,4.3121]
[1754272193617,3.4093,3540.0,3539.9,4.3121]
[1754272193818,1.7365,3540.0,3539.9,4.3121]
[1754272194115,1.1047,3540.0,3539.9,4.3121]
[1754272194321,1.7365,3540.0,3539.9,4.3121]
[1754272194521,4.3337,3540.0,3539.9,4.3121]
[1754272195317,0.56487,3540.3,3540.0,0.56491]
[1754272195515,4.89857,3540.3,3540.2,3.5977]
[1754272195719,4.89857,3540.3,3540.2,4.3121]
[1754272197113,4.3337,3539.8,3539.7,4.87704]
[1754272197722,0.56488,3540.2,3540.0,0.56491]
[1754272197723,1.26668,3540.2,3540.0,0.56491]
[1754272197923,4.3337,3540.2,3540.1,4.3121]
[1754272200724,4.3337,3540.2,3540.1,0.6464]
[1754272201714,4.3337,3539.9,3539.6,0.9052]
[1754272201920,4.3337,3539.6,3539.5,2.63848]
[1754272202228,4.3337,3539.6,3539.5,4.87708]
[1754272202726,4.3337,3539.6,3539.5,4.3121]
[1754272202923,4.3337,3539.6,3539.5,1.2654]
[1754272203131,2.30149,3539.5,3539.4,3.2078]
[1754272203325,4.89869,3539.5,3539.4,3.2078]
[1754272203523,1.82455,3539.1,3539.0,3.3439]
[1754272203723,4.89875,3539.1,3538.9,3.2078]
[1754272203922,2.30155,3539.1,3538.9,3.2078]
[1754272204122,2.0798,3539.3,3539.2,1.7243]
[1754272204431,4.3337,3539.3,3539.2,3.4069]
[1754272204632,0.56503,3539.2,3539.0,0.9052]
[1754272204826,4.3337,3539.1,3539.0,1.7243]
[1754272205134,8.10652,3539.3,3539.2,4.3121]
[1754272205431,2.30155,3539.1,3538.7,1.6826]
[1754272205728,4.3337,3538.9,3538.8,4.3121]
[1754272206328,4.3337,3539.2,3539.1,4.87715]
[1754272206530,4.3337,3539.2,3539.1,4.3121]
[1754272208123,6.43363,3539.9,3539.8,1.2654]
[1754272208425,6.43363,3539.9,3539.5,4.3121]
[1754272208426,2.30148,3539.6,3539.5,4.3121]
[1754272208729,4.3337,3539.6,3539.5,1.7243]
[1754272208921,4.3337,3539.3,3539.2,4.87713]
[1754272209926,0.6277,3539.6,3539.5,4.87708]
[1754272210322,6.8397,3539.9,3539.8,2.28924]
[1754272210522,7.5415,3539.9,3539.8,4.87704]
[1754272210728,4.9443,3539.9,3539.8,4.87704]
[1754272210928,0.56487,3540.3,3539.8,4.87704]
[1754272210929,3.2078,3540.3,3540.2,2.63837]
[1754272211130,3.2078,3540.3,3540.2,4.87697]
[1754272211731,3.8355,3540.3,3540.2,4.87697]
[1754272211928,3.2078,3540.3,3540.2,4.87697]
[1754272212733,4.9443,3540.3,3540.2,4.3121]
[1754272213031,7.5415,3540.3,3540.2,4.3121]
[1754272213732,3.2078,3540.3,3540.2,4.3121]
[1754272214531,4.4212,3540.8,3540.7,1.2143]
[1754272214737,3.2078,3540.8,3540.7,4.72559]
[1754272216633,7.3414,3540.8,3540.7,4.1608]
[1754272217733,6.4514,3540.8,3540.7,4.1608]
[1754272217928,4.8669,3540.8,3540.7,4.1608]
[1754272218435,3.2078,3540.8,3540.7,4.1608]
[1754272218940,7.3414,3540.8,3540.7,4.1608]
[1754272221938,3.4228,3540.7,3540.6,1.6897]
[1754272222238,4.1336,3540.7,3540.6,1.6897]
[1754272222442,4.1336,3540.6,3540.5,0.56482]
[1754272222642,4.1336,3540.6,3540.5,2.25452]
[1754272222838,4.1336,3540.6,3540.5,4.1608]
[1754272223035,2.4745,3540.5,3540.3,0.9231]
[1754272223236,1.6591,3540.4,3540.3,4.1608]
[1754272223439,4.1336,3540.4,3540.3,4.1608]
[1754272223932,4.1336,3540.4,3540.3,2.6128]
[1754272224137,4.1336,3540.4,3540.3,1.0826]
[1754272224435,7.3414,3540.4,3540.3,1.0826]
[1754272224838,7.3414,3540.4,3540.3,0.6072]
[1754272225742,7.3414,3540.4,3540.0,20.1569]
[1754272225943,4.1336,3540.1,3540.0,22.1626]
[1754272226239,1.7637,3540.0,3539.9,3.2078]
[1754272226442,4.1336,3540.0,3539.9,3.2078]
[1754272227043,4.1336,3539.9,3539.8,1.6897]
[1754272228142,4.1336,3539.9,3539.8,0.6072]
[1754272228344,4.1336,3539.9,3539.6,19.591]
[1754272228345,4.69854,3539.9,3539.6,19.591]
[1754272228544,0.89,3539.8,3539.6,19.591]
[1754272228742,4.1336,3539.7,3539.5,19.591]
[1754272228939,4.1336,3539.3,3539.2,24.4885]
[1754272229346,4.1336,3539.3,3539.2,4.8975]
[1754272229542,1.41239,3539.8,3538.8,8.29859708]
[1754272229543,4.1336,3538.9,3538.8,8.29859708]
[1754272229750,4.1336,3538.9,3538.8,29.48259708]
[1754272230447,4.1336,3538.9,3538.8,26.9596]
[1754272230642,4.69868,3538.9,3538.8,26.9596]
[1754272230843,4.69868,3538.9,3538.8,4.2904]
[1754272231242,4.69868,3538.9,3538.8,1.0826]
[1754272231452,4.69868,3538.9,3538.8,0.6072]
[1754272231853,2.22421,3538.7,3538.6,21.2827]
[1754272232147,4.1336,3538.7,3538.6,22.2058]
[1754272232346,4.1336,3538.7,3538.6,23.7538]
[1754272233453,7.3414,3539.1,3539.0,4.1608]
[1754272233750,4.69865,3539.1,3539.0,2.5678]
[1754272233955,4.69865,3539.1,3539.0,1.6897]
[1754272234646,4.1336,3538.9,3538.8,4.1608]
[1754272235451,4.1336,3538.9,3538.8,4.7259]
[1754272236254,4.1336,3538.9,3538.6,19.593]
[1754272236255,3.2078,3539.5,3539.1,2.4711]
[1754272236454,3.2078,3539.5,3539.4,1.2143]
[1754272236455,6.14269,3539.5,3539.4,1.2143]
[1754272236852,7.90639,3539.5,3539.4,1.2143]
[1754272237255,7.90639,3539.5,3539.4,4.1608]
[1754272237650,3.2078,3539.5,3539.4,4.1608]
[1754272237959,4.8669,3539.5,3539.4,4.1608]
[1754272238153,1.6591,3539.0,3538.9,4.72588]
[1754272238353,3.2436,3539.0,3538.9,24.32088]
[1754272238553,3.2436,3539.4,3539.3,4.1608]
[1754272238758,4.1336,3539.4,3539.3,4.1608]
[1754272238957,1.2134,3539.0,3538.9,22.6105]
[1754272239158,4.1336,3539.0,3538.9,1.6897]
[1754272239652,1.6591,3539.0,3538.9,4.1608]
[1754272240055,3.2078,3539.5,3539.0,1.8012]
[1754272240262,4.8669,3539.5,3539.4,4.1608]
[1754272240559,3.2078,3540.3,3539.8,4.1608]
[1754272240760,4.69849,3540.2,3540.1,1.6897]
[1754272240959,5.45904473,3540.2,3540.1,1.2143]
[1754272241255,5.45904473,3540.2,3540.1,4.1608]
[1754272241256,1.6591,3540.2,3540.1,4.1608]
[1754272241459,5.43169,3540.7,3540.6,1.6897]
[1754272241661,8.66667924,3540.7,3540.6,4.1608]
[1754272242455,7.3414,3540.7,3540.6,4.1608]
[1754272242654,4.271,3540.7,3540.6,4.1608]
[1754272242858,0.89,3541.0,3540.9,1.6897]
[1754272242859,1.9532,3541.0,3540.9,1.6897]
[1754272243059,4.1336,3541.0,3540.9,4.1608]
[1754272243365,4.8941748,3541.0,3540.9,4.1608]
[1754272243560,4.8941748,3541.0,3540.9,1.6897]
[1754272243757,4.1138,3540.7,3540.6,4.1679]
[1754272243960,4.1138,3540.7,3540.6,4.0929]
[1754272244366,1.6591,3540.7,3540.6,4.0929]
[1754272244670,4.1138,3540.7,3540.6,4.0929]
[1754272245062,4.1138,3540.7,3540.6,1.6437]
[1754272246565,4.67859,3540.7,3540.3,6.22185]
[1754272246874,4.1181,3540.3,3540.2,2.4844]
[1754272247265,4.1181,3540.3,3540.2,4.0691]
[1754272247461,4.1181,3540.3,3540.2,2.572]
[1754272247662,4.1181,3540.3,3540.2,0.56487]
[1754272247871,2.4547,3540.2,3540.1,0.56488]
[1754272248070,4.1181,3540.2,3540.1,4.63398]
[1754272248269,4.1181,3540.2,3539.8,22.8428]
[1754272248270,3.2076,3540.2,3539.8,3.2078]
[1754272248567,3.2078,3540.6,3539.8,3.2078]
[1754272248568,4.1181,3539.9,3539.8,7.84184]
[1754272248767,4.1181,3539.9,3539.8,6.3917]
[1754272248968,4.1181,3539.9,3539.8,7.2769]
[1754272250373,4.1181,3539.9,3539.8,4.8277]
[1754272250879,4.1181,3539.9,3539.8,7.2769]
[1754272252076,4.68302,3539.9,3539.8,3.2078]
[1754272252377,4.1181,3539.9,3539.8,3.2078]
[1754272252566,4.1181,3539.9,3539.8,3.8197]
[1754272252875,4.1181,3539.9,3539.8,4.8277]
[1754272253075,4.68302,3539.9,3539.8,4.8277]
[1754272253774,4.1181,3539.9,3539.8,4.8277]
[1754272254374,4.1181,3539.9,3539.8,7.2769]
[1754272254969,4.1181,3539.9,3539.8,5.6922]
[1754272255574,4.1181,3539.9,3539.8,4.8277]
[1754272255873,4.1181,3539.9,3539.8,5.39264]
[1754272256068,4.1181,3539.9,3539.8,7.84184]
[1754272256270,4.1181,3539.9,3539.8,7.2769]
[1754272256874,1.6634,3539.6,3539.5,1.7497]
[1754272257074,4.1181,3539.6,3539.5,4.0691]
[1754272257671,4.1181,3539.6,3539.5,3.1839]
[1754272257873,4.1181,3539.6,3539.5,4.0691]
[1754272258775,7.3259,3540.0,3539.9,4.0691]
[1754272259769,4.1181,3539.6,3539.5,3.74888]
[1754272259968,4.1181,3539.6,3539.5,0.5786]
[1754272260773,4.1181,3539.6,3539.5,1.6199]
[1754272260973,4.1181,3539.6,3539.5,4.0691]
[1754272261173,4.6201,3540.0,3539.2,3.77283]
[1754272261174,1.6634,3539.3,3539.2,7.2769]
[1754272261375,4.1181,3539.3,3539.2,7.2769]
[1754272262075,4.6201,3540.0,3539.9,4.63402]
[1754272262076,3.2078,3540.0,3539.9,4.63402]
[1754272263083,5.7817,3541.0,3540.9,1.6199]
[1754272263382,7.49854054,3541.0,3540.9,4.0691]
[1754272264272,1.6634,3540.7,3540.6,4.0691]
[1754272264575,4.29074054,3540.7,3540.6,4.0691]
[1754272265280,0.17264054,3540.7,3540.6,4.0691]
[1754272265480,7.26535,3541.0,3540.9,2.4492]
[1754272265676,7.49875373,3541.0,3540.9,4.0691]
[1754272266576,6.58825373,3541.0,3540.9,4.0691]
[1754272266977,7.49875373,3541.0,3540.9,4.0691]
[1754272268283,7.3259,3541.0,3540.9,4.63386]
[1754272268581,0.56476,3540.9,3540.6,3.01401]
[1754272268774,4.1181,3540.7,3540.6,4.0691]
[1754272270081,4.8712,3541.0,3540.9,4.0691]
[1754272270774,6.6868,3541.0,3540.9,4.0691]
[1754272270979,7.3259,3541.0,3540.9,4.0691]
[1754272271984,3.2078,3541.0,3540.9,4.0691]
[1754272272183,3.8331,3541.0,3540.9,4.0691]
[1754272272685,4.8712,3541.0,3540.9,4.0691]
[1754272273786,7.2772,3541.0,3540.9,4.0691]
[1754272274786,4.8712,3541.0,3540.9,4.0691]
[1754272276486,6.4172,3541.0,3540.9,4.0691]
[1754272276685,7.2772,3541.0,3540.9,4.0691]
[1754272278382,7.2772,3541.0,3540.9,0.5786]
[1754272279493,3.9927,3540.7,3540.6,1.2106]
[1754272279787,3.9927,3540.7,3540.6,2.5963]
[1754272279979,3.9927,3540.7,3540.6,4.1738]
[1754272280385,3.9927,3540.7,3540.6,1.6709]
[1754272280686,3.9927,3540.7,3540.6,2.5726]
[1754272280987,1.5867,3540.4,3540.3,4.73865]
[1754272281190,3.9927,3540.4,3540.3,4.1738]
[1754272281493,3.9927,3540.4,3540.3,0.5969]
[1754272281682,3.9927,3540.4,3540.3,4.1738]
[1754272284581,3.9927,3540.4,3540.3,3.498]
[1754272286294,3.9927,3540.4,3540.3,1.6709]
[1754272287496,3.12986,3540.3,3540.2,3.2078]
[1754272287698,4.55756,3540.3,3540.2,3.8047]
[1754272287996,4.55756,3540.3,3540.2,3.2078]
[1754272288491,4.55756,3540.3,3540.0,1.8271]
[1754272288492,4.55756,3540.3,3539.8,0.6758]
[1754272288790,3.9927,3539.9,3539.8,4.73872]
[1754272289887,3.9927,3539.9,3539.8,4.1738]
[1754272290887,3.9927,3539.9,3539.8,1.6709]
[1754272291090,2.33157,3539.6,3539.5,2.6347]
[1754272291285,4.55767,3539.6,3539.5,2.6347]
[1754272291692,3.9927,3539.6,3539.5,4.1738]
[1754272291993,3.2078,3540.0,3539.9,4.1738]
[1754272291994,5.35941,3540.0,3539.9,4.1738]
[1754272292196,7.76541,3540.0,3539.9,4.1738]
[1754272293896,7.2005,3540.0,3539.9,4.1738]
[1754272294900,6.3405,3540.0,3539.9,4.1738]
[1754272295095,0.56492,3539.9,3539.5,2.39208]
[1754272295297,4.55762,3539.9,3539.8,4.1738]
[1754272295602,3.9927,3539.9,3539.8,4.1738]
[1754272296602,2.2215,3539.9,3539.8,4.1738]
[1754272296796,1.5867,3539.9,3539.8,4.1738]
[1754272297198,3.2078,3540.0,3539.9,2.23582]
[1754272297492,1.4948,3540.2,3540.1,0.56489]
[1754272297698,0.56485,3540.4,3540.1,0.56489]
[1754272297699,1.58745,3540.4,3540.3,4.1738]
[1754272298097,2.15155,3540.4,3540.3,4.1738]
[1754272298798,1.5867,3540.4,3540.3,4.73866]
[1754272299497,3.2078,3540.8,3540.7,2.3467]
[1754272300199,3.2078,3540.8,3540.7,4.1738]
[1754272301497,3.2078,3540.8,3540.3,0.5969]
[1754272301498,3.9927,3540.4,3540.3,0.5969]
[1754272302501,3.9927,3540.1,3540.0,2.3467]
[1754272302903,3.9927,3540.1,3540.0,3.2484]
[1754272303201,3.9927,3540.1,3540.0,4.1738]
[1754272304602,3.9927,3540.1,3540.0,1.6709]
[1754272304799,3.9814,3539.8,3539.7,5.666]
[1754272304999,3.9814,3539.8,3539.7,7.2305]
[1754272305000,3.0836,3539.8,3539.7,7.2305]
[1754272305407,3.9814,3539.8,3539.7,7.2305]
[1754272306103,1.549,3539.8,3539.7,7.2305]
[1754272306704,3.9814,3539.8,3539.7,7.2305]
[1754272306916,3.2078,3540.4,3540.3,0.56486]
[1754272306917,1.0014,3540.4,3540.3,0.56486]
[1754272307099,1.0014,3540.4,3540.3,4.58756]
[1754272307303,3.089,3540.5,3540.4,3.0256]
[1754272307505,3.9814,3540.5,3540.4,4.0227]
[1754272308000,7.1892,3540.8,3540.7,4.0227]
[1754272309009,3.3392,3540.3,3540.2,3.93007]
[1754272309205,3.9814,3540.3,3540.2,4.0227]
[1754272309404,3.9814,3540.3,3540.2,1.5541]
[1754272309800,2.11387,3540.2,3540.1,3.2078]
[1754272310002,4.54627,3540.2,3540.1,3.2078]
[1754272310206,4.54627,3540.2,3540.1,3.7736]
[1754272310401,4.54627,3540.2,3540.1,4.7619]
[1754272310606,4.54627,3540.2,3540.1,3.2078]
[1754272311207,1.41203,3540.7,3539.6,0.56496]
[1754272311208,2.11394,3539.8,3539.7,1.5541]
[1754272311417,3.5476,3539.6,3539.5,4.58768]
[1754272311606,3.9814,3539.3,3539.2,2.52299708]
[1754272311811,3.9814,3539.2,3539.1,3.2078]
[1754272312007,3.9814,3539.2,3539.1,3.7736]
[1754272312207,3.9814,3539.2,3539.1,4.7619]
[1754272312516,3.9814,3539.2,3539.1,6.573]
[1754272312817,3.9814,3539.2,3539.1,7.2305]
[1754272313015,2.4324,3539.7,3539.2,2.4686]
[1754272313315,3.2078,3539.8,3539.6,4.58767]
[1754272313510,0.8924,3540.0,3539.9,1.5541]
[1754272313716,1.20707,3540.3,3539.9,4.58761]
[1754272314015,4.54627,3540.3,3540.2,4.0227]
[1754272314213,3.9814,3540.3,3540.2,4.0227]
[1754272315113,3.9814,3540.3,3540.2,2.4582]
[1754272315318,4.54631,3540.0,3539.9,1.5541]
[1754272316215,2.5414,3540.0,3539.9,4.0227]
[1754272316411,0.56485,3540.4,3540.2,4.58757]
[1754272316616,3.9814,3540.3,3540.2,1.5541]
[1754272317118,1.0014,3540.3,3540.2,4.58757]
[1754272317416,4.4176,3540.5,3540.4,0.5658]
[1754272317716,7.1892,3540.5,3540.4,4.0227]
[1754272318822,3.9814,3540.5,3540.4,4.0227]
[1754272320314,1.549,3540.2,3540.1,4.58758]
[1754272320621,3.9814,3540.2,3540.1,4.0227]
[1754272321922,3.2078,3540.6,3540.5,2.11893]
[1754272322117,0.5648,3540.7,3540.5,4.0227]
[1754272322315,0.5648,3540.7,3540.4,0.56484]
[1754272322316,4.5462,3540.7,3540.6,4.0227]
[1754272323113,0.5676,3540.8,3540.7,2.94169]
[1754272323314,1.549,3540.8,3540.7,4.0227]
[1754272323625,3.9814,3540.8,3540.7,4.0227]
[1754272325019,1.549,3540.5,3540.4,4.0227]
[1754272325218,3.9814,3540.5,3540.4,4.0227]
[1754272327527,3.9814,3540.5,3540.4,2.4582]
[1754272327824,3.9814,3540.5,3540.4,4.0227]
[1754272328425,3.9814,3540.5,3540.4,3.1157]
[1754272328624,4.54627,3540.2,3540.1,1.5541]
[1754272328929,4.54631,3540.0,3539.9,1.5541]
[1754272329114,2.11394,3539.8,3539.7,2.4582]
[1754272329318,4.54634,3539.8,3539.7,2.4582]
[1754272329722,3.9814,3539.8,3539.7,2.4582]
[1754272330026,3.9814,3539.8,3539.7,4.0227]
[1754272330525,4.54634,3539.8,3539.7,1.5541]
[1754272331429,3.2078,3540.2,3539.5,5.6764]
[1754272331430,3.9814,3539.6,3539.5,7.2305]
[1754272331626,3.9814,3539.6,3539.5,7.79549]
[1754272332428,0.56493,3539.9,3539.7,2.11905]
[1754272332429,1.549,3539.8,3539.7,2.11905]
[1754272332626,3.00622,3540.6,3540.5,1.5541]
[1754272332823,3.64842,3540.6,3540.5,1.5541]
[1754272333030,3.64842,3540.6,3540.5,4.0227]
[1754272333218,4.54622,3540.6,3540.5,4.0227]
[1754272333622,4.54622,3540.6,3540.5,3.3652]
[1754272333923,2.10466,3540.3,3540.2,4.0139]
[1754272334232,4.50516,3540.3,3540.2,4.0139]
[1754272334420,0.56489,3540.1,3540.0,1.559]
[1754272334627,3.9403,3540.1,3540.0,3.1309]
[1754272334821,3.9403,3540.1,3540.0,4.0238]
[1754272336025,3.9403,3540.1,3540.0,1.5719]
[1754272336737,3.9403,3540.1,3540.0,4.0238]
[1754272337528,1.5398,3540.1,3540.0,4.0238]
[1754272338236,3.9403,3540.1,3540.0,4.0238]
[1754272339128,1.14207,3540.3,3540.2,1.1251]
[1754272339331,4.50517,3540.3,3540.2,4.0238]
[1754272341334,1.69401,3540.0,3539.9,3.577]
[1754272341532,4.50521,3540.0,3539.9,4.0238]
[1754272341732,3.9403,3540.0,3539.9,4.0238]
[1754272345030,3.2887,3539.6,3539.5,1.5719]
[1754272345227,3.2887,3539.6,3539.5,4.0238]
[1754272345431,1.52752,3539.9,3539.8,4.0238]
[1754272345638,0.5772,3540.1,3540.0,1.5719]
[1754272345835,0.5772,3540.1,3540.0,4.0238]
[1754272346233,3.2078,3540.5,3540.4,0.56484]
[1754272346433,3.77258,3540.9,3540.8,1.9114]
[1754272346637,7.85236853,3540.9,3540.8,2.5788]
[1754272346940,2.10461,3540.7,3540.6,1.0185]
[1754272347143,4.50511,3540.7,3540.6,2.5788]
[1754272347729,2.03275,3540.4,3540.3,2.5788]
[1754272347935,4.50515,3540.4,3540.3,2.5788]
[1754272348134,3.9403,3540.4,3540.3,2.5788]
[1754272349643,2.398,3540.4,3540.3,2.5788]
[1754272350038,1.4101,3540.4,3540.3,2.5788]
[1754272350338,2.1071,3540.7,3540.6,2.5788]
[1754272350339,3.9403,3540.7,3540.6,2.5788]
[1754272351844,3.2078,3540.9,3540.3,0.8929]
[1754272352044,5.27117149,3540.8,3540.7,2.5788]
[1754272352241,3.9403,3540.4,3540.3,0.56486]
[1754272352540,3.9403,3540.4,3540.3,1.58336]
[1754272352741,3.9403,3540.4,3540.3,3.14366]
[1754272354343,3.0496,3540.4,3540.3,3.14366]
[1754272354545,2.398,3540.4,3540.3,3.14366]
[1754272354745,2.96284,3540.4,3540.3,2.5788]
[1754272354945,3.9403,3540.4,3540.3,2.5788]
[1754272355346,3.0496,3540.4,3540.3,2.5788]
[1754272356244,3.61444,3540.4,3540.3,2.5788]
[1754272356545,3.0496,3540.4,3540.3,2.5788]
[1754272357245,3.9403,3540.4,3540.3,2.5788]
[1754272359147,0.9626,3540.6,3540.5,0.4468]
[1754272359342,1.5398,3540.6,3540.5,1.6859]
[1754272359546,1.5398,3540.6,3540.5,2.5788]
[1754272359744,3.9403,3540.6,3540.5,2.5788]
[1754272363748,1.9873,3540.6,3540.5,2.5788]
[1754272363947,1.9303,3540.5,3540.4,0.98904]
[1754272364149,2.3752,3540.5,3540.4,2.19864]
[1754272364450,2.3752,3540.5,3540.4,3.01544]
[1754272365247,3.1836,3540.9,3540.8,2.36157]
[1754272365449,0.56472,3541.2,3541.1,1.4706]
[1754272365752,4.36072,3541.2,3541.1,2.4506]
[1754272365947,5.12738596,3541.2,3541.1,2.4506]
[1754272366148,5.12746541,3541.2,3541.1,2.4506]
[1754272366945,2.12866,3540.9,3540.8,2.4506]
[1754272367151,4.36076,3540.9,3540.8,2.4506]
[1754272367547,3.796,3540.8,3540.7,3.2078]
[1754272367748,3.796,3540.5,3540.4,3.01543]
[1754272367948,4.36083,3540.5,3540.3,3.2078]
[1754272368148,3.796,3540.4,3540.3,3.2078]